[Event "Chess House GM-Tourney 2019"]
[Site "Aarhus"]
[Date "2019.02.09"]
[Round "1.1"]
[White "Bach, Matthias"]
[Black "Olsen, Filip Boe"]
[Result "1/2-1/2"]
[ECO "B14"]
[WhiteElo "2307"]
[BlackElo "2397"]
[Annotator "NA"]
[PlyCount "63"]
[EventDate "2019.02.09"]
[EventType "tourn"]
[EventCountry "DEN"]
[SourceTitle "playchess.com"]
[Source "ChessBase"]
[SourceQuality "1"]
[TimeControl "40/5400+30:1800+30"]

1. e4 {[%emt 0:00:00]} c6 {[%emt 0:00:00]} 2. c4 {[%emt 0:00:00]} d5 {[%emt 0:00:04]} 3. exd5 {[%emt 0:00:00]} cxd5 {[%emt 0:00:07]} 4. d4 {[%emt 0:00:02]} Nf6 {[%emt 0:00:10]} 5. Nc3 {[%emt 0:00:17]} g6 {[%emt 0:00:31]} 6. Bg5 {[%emt 0:09:17]} Bg7 {[%emt 0:01:08] B14: Caro-Kann: Panov-Botvinnik Attack with 5...e6 and 5...g6} 7. Qd2 {[%emt 0:00:12]} (7. Nf3 O-O 8. Bxf6 exf6 9. Nxd5 Bg4 10. Be2 Nc6 11. O-O f5 12. Rc1 Bxf3 13. Bxf3 Nxd4 14. b4 Re8 15. Qd3 Qd7 {0-1 (32) Gogolev,A (2427)-Motylev,A (2675) Sochi 2017}) 7... Nc6 {[%emt 0:05:34]} 8. Rd1 $146 {[%emt 0:09:48]} ({Predecessor:} 8. cxd5 Nxd5 9. Nf3 h6 10. Be3 Nxe3 11. fxe3 O-O 12. Be2 Qb6 13. O-O Rd8 14. Rac1 {0-1 (40) Sanduleac,V (2386)-Chetrari,N (2146) Eforie Nord 2015}) 8... Bg4 {[%emt 0:08:35]} 9. f3 {[%emt 0:00:59]} Be6 {[%emt 0:00:36]} 10. Nge2 {[%emt 0:00:57]} h6 {[%emt 0:08:52]} 11. Be3 {[%emt 0:01:47]} dxc4 {[%emt 0:01:51]} 12. Nf4 {[%emt 0:01:45]} Bd5 {[%emt 0:04:17]} 13. Ncxd5 {[%emt 0:03:23]} Nxd5 {[%emt 0:00:27]} 14. Bxc4 {[%emt 0:00:30]} Nxe3 {[%emt 0:04:21]} 15. Qxe3 {[%emt 0:00:10]} Nxd4 {[%emt 0:09:16]} 16. O-O {[%emt 0:03:45]} Qd6 {[%emt 0:11:17]} 17. Rfe1 {[%emt 0:14:36]} O-O {[%emt 0:01:51]} 18. Kh1 {[%emt 0:05:08]} Rfd8 {[%emt 0:05:12]} 19. Qe4 {[%emt 0:08:17]} e6 {[%emt 0:02:33]} 20. Nxg6 {[%emt 0:08:38]} Rac8 {[%emt 0:11:27]} 21. Bd3 {[%emt 0:05:08]} fxg6 {[%emt 0:02:41]} 22. Qxg6 {[%emt 0:00:10]} Rc5 {[%emt 0:04:29]} 23. f4 {[%emt 0:05:11]} Nf5 {[%emt 0:03:08]} 24. Bc2 {[%emt 0:04:30]} Nd4 {[%emt 0:01:59]} 25. Bb3 {[%emt 0:04:06]} Qf8 {[%emt 0:02:44]} 26. Bxe6+ {[%emt 0:05:11]} Nxe6 {[%emt 0:01:39]} 27. Qxe6+ {[%emt 0:00:05]} Kh8 {[%emt 0:00:22]} 28. Rxd8 {[%emt 0:00:38]} Qxd8 {[%emt 0:00:01]} 29. Qf7 {[%emt 0:00:55]} Qf6 {[%emt 0:01:18]} 30. Qxb7 $17 {[%emt 0:02:19]} Qe6 {[%emt 0:01:36]} 31. Qb4 {[%emt 0:01:36]} Bc3 {[%emt 0:04:37]} 32. Qb8+ {[%emt 0:01:03]} 1/2-1/2

[Event "Chess House GM-Tourney 2019"]
[Site "Aarhus"]
[Date "2019.02.09"]
[Round "1.2"]
[White "Kollars, Dmitrij"]
[Black "Grivas, Efstratios"]
[Result "1/2-1/2"]
[ECO "B30"]
[WhiteElo "2567"]
[BlackElo "2413"]
[Annotator "ChessBase"]
[PlyCount "98"]
[EventDate "2019.02.09"]
[EventType "tourn"]
[EventCountry "DEN"]
[SourceTitle "playchess.com"]
[Source "ChessBase"]
[SourceQuality "1"]
[TimeControl "40/5400+30:1800+30"]

1. e4 {[%emt 0:00:00]} c5 {[%emt 0:00:00]} 2. Nf3 {[%emt 0:00:00]} Nc6 {[%emt 0:00:13]} 3. Bb5 {[%emt 0:00:12]} d6 {[%emt 0:00:28]} 4. O-O {[%emt 0:00:31]} Bd7 {[%emt 0:00:20]} 5. Re1 {[%emt 0:01:55]} Nf6 {[%emt 0:00:22]} 6. c3 {[%emt 0:00:19]} a6 {[%emt 0:00:23]} 7. Bc4 {[%emt 0:00:28]} Bg4 {[%emt 0:07:12]} 8. d4 {[%emt 0:00:32]} e6 {[%emt 0:12:17]} 9. d5 {[%emt 0:15:06]} Bxf3 {[%emt 0:10:18]} 10. Qxf3 {[%emt 0:02:54]} Ne5 {[%emt 0:00:49]} 11. Qe2 {[%emt 0:00:07]} Nxc4 {[%emt 0:01:20]} 12. Qxc4 {[%emt 0:00:12]} exd5 {[%emt 0:00:25]} 13. exd5+ {[%emt 0:00:28]} Be7 {[%emt 0:00:09]} 14. Qe2 {[%emt 0:13:18]} Qd7 {[%emt 0:04:52]} 15. Bd2 {[%emt 0:04:36]} b5 {[%emt 0:17:11]} 16. a4 {[%emt 0:11:00]} bxa4 {[%emt 0:00:28]} 17. c4 {[%emt 0:07:23]} Ra7 {[%emt 0:01:04]} 18. Ra3 {[%emt 0:01:00]} O-O {[%emt 0:01:11]} 19. Re3 {[%emt 0:00:50]} Bd8 {[%emt 0:03:11]} 20. Bc3 {[%emt 0:00:56]} Rb7 {[%emt 0:05:05]} 21. Nd2 {[%emt 0:02:00]} a3 {[%emt 0:01:46]} 22. bxa3 {[%emt 0:00:21]} Qf5 {[%emt 0:08:53]} 23. Qd1 {[%emt 0:05:14]} Qd7 {[%emt 0:01:40]} 24. h3 {[%emt 0:06:46]} Re8 {[%emt 0:05:01]} 25. Rxe8+ {[%emt 0:02:03]} Nxe8 {[%emt 0:00:09]} 26. Qg4 {[%emt 0:00:11]} Kf8 {[%emt 0:00:35]} 27. Qe4 {[%emt 0:01:22]} Qe7 {[%emt 0:05:27]} 28. Kf1 {[%emt 0:07:12]} Qxe4 {[%emt 0:00:31]} 29. Nxe4 {[%emt 0:00:32]} f5 {[%emt 0:04:59]} 30. Nd2 {[%emt 0:00:59]} Bf6 {[%emt 0:00:32]} 31. Bxf6 {[%emt 0:01:37]} Nxf6 {[%emt 0:00:08]} 32. Re6 {[%emt 0:00:47]} Ne8 {[%emt 0:03:30]} 33. g4 {[%emt 0:00:50]} fxg4 {[%emt 0:00:39]} 34. hxg4 {[%emt 0:00:09]} Re7 {[%emt 0:00:24]} 35. f4 {[%emt 0:03:07]} Rf7 {[%emt 0:01:53]} 36. f5 {[%emt 0:00:23]} Nf6 {[%emt 0:02:42]} 37. Ne4 {[%emt 0:04:45]} Nxe4 {[%emt 0:00:17]} 38. Rxe4 {[%emt 0:00:04]} h5 {[%emt 0:01:23]} 39. Re6 {[%emt 0:04:10]} hxg4 {[%emt 0:00:06]} 40. Kg2 {[%emt 0:00:25]} Rxf5 {[%emt 0:01:17]} 41. Rxd6 {[%emt 0:30:16]} Rf4 {[%emt 0:30:25]} 42. Rxa6 {[%emt 0:00:19]} Rxc4 {[%emt 0:00:08]} 43. Rc6 {[%emt 0:02:44]} Ke7 {[%emt 0:00:34]} 44. Kg3 {[%emt 0:00:16]} Ra4 {[%emt 0:00:40]} 45. Rxc5 {[%emt 0:00:11]} Rxa3+ {[%emt 0:00:22]} 46. Kxg4 {[%emt 0:00:05]} Kd6 {[%emt 0:00:07]} 47. Rb5 {[%emt 0:00:14]} Rd3 {[%emt 0:00:17]} 48. Kf5 {[%emt 0:00:16]} Rxd5+ {[%emt 0:00:08]} 49. Rxd5+ {[%emt 0:00:04]} Kxd5 {[%emt 0:00:07] Ke4+} 1/2-1/2

[Event "Chess House GM-Tourney 2019"]
[Site "Aarhus"]
[Date "2019.02.09"]
[Round "1.3"]
[White "Thybo, Jesper Sondergaard"]
[Black "Fries-Nielsen, Jens Ove"]
[Result "1/2-1/2"]
[ECO "E06"]
[WhiteElo "2517"]
[BlackElo "2371"]
[Annotator "RC"]
[PlyCount "100"]
[EventDate "2019.02.09"]
[EventType "tourn"]
[EventCountry "DEN"]
[SourceTitle "playchess.com"]
[Source "ChessBase"]
[SourceQuality "1"]
[TimeControl "40/5400+30:1800+30"]

1. d4 {[%emt 0:00:00]} d5 {[%emt 0:00:00]} 2. c4 {[%emt 0:00:00]} e6 {[%emt 0:00:00]} 3. Nf3 {[%emt 0:00:00]} Nf6 {[%emt 0:00:12]} 4. g3 {[%emt 0:00:30]} Be7 {[%emt 0:00:49]} 5. Bg2 {[%emt 0:00:09]} O-O {[%emt 0:00:07]} 6. O-O {[%emt 0:00:07]} Na6 {[%emt 0:00:32]} 7. Nc3 {[%emt 0:00:49]} c6 {[%emt 0:01:19]} 8. b3 {[%emt 0:00:17]} b6 {[%emt 0:05:57]} 9. Bb2 {[%emt 0:10:21]} Bb7 {[%emt 0:00:08]} 10. Qb1 {[%emt 0:04:57]} c5 {[%emt 0:05:55]} 11. Rd1 {[%emt 0:16:15]} Qb8 {[%emt 0:01:17]} 12. cxd5 {[%emt 0:04:36]} exd5 {[%emt 0:02:57]} 13. Nh4 {[%emt 0:08:12]} Rd8 {[%emt 0:02:00]} 14. Nf5 {[%emt 0:01:07]} Bf8 {[%emt 0:00:02]} 15. Qc1 {[%emt 0:02:00]} h6 {[%emt 0:03:54]} 16. Qe3 {[%emt 0:03:29]} Re8 {[%emt 0:01:59]} 17. Qf3 {[%emt 0:00:45]} Re6 {[%emt 0:07:37]} 18. Bh3 {[%emt 0:02:36]} Qe8 {[%emt 0:02:36]} 19. Qf4 {[%emt 0:10:49]} Rd8 {[%emt 0:06:55]} 20. e3 {[%emt 0:01:12]} Nh7 {[%emt 0:02:05]} 21. Bg2 {[%emt 0:01:53]} Nf6 {[%emt 0:06:38]} 22. Rac1 {[%emt 0:00:49]} Kh7 {[%emt 0:02:13]} 23. dxc5 {[%emt 0:05:04]} bxc5 {[%emt 0:00:33]} 24. Na4 {[%emt 0:04:47]} g5 {[%emt 0:14:17]} 25. Qf3 {[%emt 0:00:34]} Bc6 {[%emt 0:05:38]} 26. Qe2 {[%emt 0:04:17]} Bb5 {[%emt 0:10:22]} 27. Qc2 {[%emt 0:00:35]} Kg8 {[%emt 0:00:01]} 28. Qc3 {[%emt 0:05:31]} Bxa4 {[%emt 0:04:25]} 29. bxa4 {[%emt 0:01:00]} Nb4 {[%emt 0:00:05]} 30. Ra1 {[%emt 0:02:24]} Qxa4 {[%emt 0:03:49]} 31. a3 {[%emt 0:02:11]} d4 {[%emt 0:00:04]} 32. Qc4 {[%emt 0:02:24]} Qc2 {[%emt 0:00:13]} 33. Qxc2 {[%emt 0:05:14]} Nxc2 {[%emt 0:00:05]} 34. Rac1 {[%emt 0:00:05]} d3 {[%emt 0:00:13]} 35. Bf1 {[%emt 0:01:01]} c4 {[%emt 0:00:56]} 36. Nd4 {[%emt 0:01:07]} Rb6 {[%emt 0:00:36]} 37. Nxc2 {[%emt 0:00:29]} Rxb2 {[%emt 0:00:38]} 38. Nd4 {[%emt 0:00:06]} Ne4 {[%emt 0:01:02]} 39. Rxc4 {[%emt 0:00:51]} Nxf2 {[%emt 0:00:14]} 40. Ra1 {[%emt 0:00:30]} Ng4 {[%emt 0:07:16]} 41. Nc6 {[%emt 0:10:06]} Nxe3 {[%emt 0:03:27]} 42. Nxd8 {[%emt 0:00:53]} Nxc4 {[%emt 0:01:33]} 43. Bxd3 {[%emt 0:00:06]} Bc5+ {[%emt 0:06:59]} 44. Kh1 {[%emt 0:00:16]} Ne5 {[%emt 0:00:45]} 45. Be4 {[%emt 0:01:02]} Ng4 {[%emt 0:02:43]} 46. Bg2 {[%emt 0:00:07]} Nf2+ {[%emt 0:11:09]} 47. Kg1 {[%emt 0:00:02]} Nd3+ {[%emt 0:01:17]} 48. Kh1 {[%emt 0:00:07]} Nf2+ {[%emt 0:03:50]} 49. Kg1 {[%emt 0:00:30]} Ng4+ {[%emt 0:03:09]} 50. Kh1 {[%emt 0:00:01]} Nf2+ {[%emt 0:01:58]} 1/2-1/2

[Event "Chess House GM-Tourney 2019"]
[Site "Aarhus"]
[Date "2019.02.09"]
[Round "1.4"]
[White "Kotronias, Vasilios"]
[Black "Bjerre, Jonas Buhl"]
[Result "0-1"]
[ECO "B94"]
[WhiteElo "2486"]
[BlackElo "2432"]
[Annotator "RC"]
[PlyCount "88"]
[EventDate "2019.02.09"]
[EventType "tourn"]
[EventCountry "DEN"]
[SourceTitle "playchess.com"]
[Source "ChessBase"]
[SourceQuality "1"]
[TimeControl "40/5400+30:1800+30"]

1. e4 {[%emt 0:00:00]} c5 {[%emt 0:00:00]} 2. Nf3 {[%emt 0:00:00]} d6 {[%emt 0:00:01]} 3. d4 {[%emt 0:00:05]} cxd4 {[%emt 0:00:09]} 4. Nxd4 {[%emt 0:00:04]} Nf6 {[%emt 0:00:14]} 5. Nc3 {[%emt 0:00:06]} a6 {[%emt 0:00:14]} 6. Bg5 {[%emt 0:00:09]} Nbd7 {[%emt 0:00:30]} 7. Qe2 {[%emt 0:00:32]} b5 {[%emt 0:01:06]} 8. O-O-O {[%emt 0:00:54]} Bb7 {[%emt 0:00:43]} 9. Bxf6 {[%emt 0:07:26]} Nxf6 {[%emt 0:02:06]} 10. e5 {[%emt 0:01:08]} dxe5 {[%emt 0:01:51]} 11. Ndxb5 {[%emt 0:03:24]} Nd7 {[%emt 0:01:06]} 12. Na3 {[%emt 0:08:24]} e6 {[%emt 0:15:17]} 13. Nc4 {[%emt 0:00:19]} Qc7 {[%emt 0:01:51]} 14. h4 {[%emt 0:25:26]} Be7 {[%emt 0:10:06]} 15. Rh3 {[%emt 0:00:06]} O-O {[%emt 0:07:19]} 16. g4 {[%emt 0:05:20]} Rfd8 {[%emt 0:06:10]} 17. g5 {[%emt 0:07:12]} a5 {[%emt 0:07:30]} 18. Nb5 {[%emt 0:11:20]} Qc5 {[%emt 0:06:09]} 19. Ncd6 {[%emt 0:00:39]} Bd5 {[%emt 0:04:32]} 20. Ne4 {[%emt 0:08:12]} Qb4 {[%emt 0:04:03]} 21. Nec3 {[%emt 0:02:55]} Bc6 {[%emt 0:05:29]} 22. a3 {[%emt 0:03:56]} Qf4+ {[%emt 0:03:02]} 23. Qe3 {[%emt 0:01:57]} Bc5 {[%emt 0:03:23]} 24. Qxf4 {[%emt 0:00:08]} exf4 {[%emt 0:00:04]} 25. Nd4 {[%emt 0:08:13]} Bb7 {[%emt 0:01:20]} 26. Ncb5 {[%emt 0:00:04]} Ne5 {[%emt 0:05:49]} 27. Rc3 {[%emt 0:00:04]} Bb6 {[%emt 0:00:56]} 28. Be2 {[%emt 0:02:18]} Rd7 {[%emt 0:02:43]} 29. Nf3 {[%emt 0:00:46]} Rxd1+ {[%emt 0:00:47]} 30. Bxd1 {[%emt 0:00:03]} Ng4 {[%emt 0:00:59]} 31. Nd6 {[%emt 0:00:42]} Bd5 {[%emt 0:04:10]} 32. Nc8 {[%emt 0:00:54]} Bd8 {[%emt 0:00:58]} 33. Nd2 {[%emt 0:02:34]} Nxf2 {[%emt 0:01:09]} 34. Bf3 {[%emt 0:00:01]} f6 {[%emt 0:01:41]} 35. Bxd5 {[%emt 0:01:01]} exd5 {[%emt 0:00:05]} 36. Nf3 {[%emt 0:00:53]} Ne4 {[%emt 0:01:58]} 37. Rc6 {[%emt 0:00:00]} fxg5 {[%emt 0:00:27]} 38. hxg5 {[%emt 0:00:03]} Nxg5 {[%emt 0:00:35]} 39. Nxg5 {[%emt 0:00:05]} Bxg5 {[%emt 0:00:04]} 40. Kd1 {[%emt 0:00:34]} f3 {[%emt 0:02:36]} 41. Ke1 {[%emt 0:31:44]} Bh4+ {[%emt 0:02:58]} 42. Kf1 {[%emt 0:00:00]} a4 {[%emt 0:02:41]} 43. Nd6 {[%emt 0:00:00]} g6 {[%emt 0:02:30]} 44. c4 {[%emt 0:00:00]} Rb8 {[%emt 0:04:59]} 0-1

[Event "Chess House GM-Tourney 2019"]
[Site "Aarhus"]
[Date "2019.02.10"]
[Round "2.2"]
[White "Grivas, Efstratios"]
[Black "Thybo, Jesper Sondergaard"]
[Result "1-0"]
[ECO "D38"]
[WhiteElo "2413"]
[BlackElo "2517"]
[Annotator "ChessBase"]
[PlyCount "91"]
[EventDate "2019.02.09"]
[EventType "tourn"]
[EventCountry "DEN"]
[SourceTitle "playchess.com"]
[Source "ChessBase"]
[SourceQuality "1"]
[TimeControl "40/5400+30:1800+30"]

1. d4 {[%emt 0:00:00]} Nf6 {[%emt 0:00:00]} 2. c4 {[%emt 0:00:00]} e6 {[%emt 0:00:00]} 3. Nf3 {[%emt 0:00:08]} d5 {[%emt 0:00:00]} 4. Nc3 {[%emt 0:00:40]} Bb4 {[%emt 0:00:00]} 5. cxd5 {[%emt 0:01:36]} exd5 {[%emt 0:00:18]} 6. Bg5 {[%emt 0:00:14]} h6 {[%emt 0:01:10]} 7. Bxf6 {[%emt 0:02:14]} Qxf6 {[%emt 0:00:09]} 8. Qb3 {[%emt 0:01:46]} Qb6 {[%emt 0:00:34]} 9. e3 {[%emt 0:04:04]} c6 {[%emt 0:00:43]} 10. Bd3 {[%emt 0:01:26]} O-O {[%emt 0:00:32]} 11. O-O {[%emt 0:00:50]} Bd6 {[%emt 0:00:30]} 12. Qc2 {[%emt 0:00:21]} Nd7 {[%emt 0:00:19]} 13. Rab1 {[%emt 0:03:10]} a5 {[%emt 0:07:08]} 14. e4 {[%emt 0:09:45]} dxe4 {[%emt 0:02:27]} 15. Nxe4 {[%emt 0:00:12]} Be7 {[%emt 0:05:35]} 16. Rfe1 {[%emt 0:08:09]} Nf6 {[%emt 0:05:14]} 17. Bc4 {[%emt 0:06:47]} Nd5 {[%emt 0:19:21]} 18. Nc3 {[%emt 0:09:27]} Be6 {[%emt 0:01:17]} 19. Bxd5 {[%emt 0:02:03]} cxd5 {[%emt 0:00:08]} 20. Qd3 {[%emt 0:01:19]} Rfc8 {[%emt 0:02:56]} 21. Ne5 {[%emt 0:04:48]} Qa6 {[%emt 0:04:26]} 22. Qf3 {[%emt 0:02:15]} Qd6 {[%emt 0:02:30]} 23. Re2 {[%emt 0:02:00]} Bf6 {[%emt 0:03:29]} 24. Rbe1 {[%emt 0:04:35]} a4 {[%emt 0:09:44]} 25. a3 {[%emt 0:01:12]} b5 {[%emt 0:01:42]} 26. Nxb5 {[%emt 0:10:41]} Qb6 {[%emt 0:00:05]} 27. Qd3 {[%emt 0:00:15]} Rab8 {[%emt 0:00:36]} 28. Nc3 {[%emt 0:00:25]} Qa7 {[%emt 0:00:53]} 29. f4 {[%emt 0:07:19]} g6 {[%emt 0:00:40]} 30. Kh1 {[%emt 0:01:05]} Kg7 {[%emt 0:05:25]} 31. Rd2 {[%emt 0:06:21]} Rb6 {[%emt 0:02:17]} 32. Qf3 {[%emt 0:01:18]} Rcb8 {[%emt 0:03:55]} 33. Ree2 {[%emt 0:00:50]} Qa5 {[%emt 0:10:12]} 34. h3 {[%emt 0:00:52]} h5 {[%emt 0:00:37]} 35. Kh2 {[%emt 0:03:21]} R8b7 {[%emt 0:01:13]} 36. g4 {[%emt 0:02:14]} hxg4 {[%emt 0:00:42]} 37. hxg4 {[%emt 0:00:03]} Rd6 {[%emt 0:03:39]} 38. Kg3 {[%emt 0:01:28]} Rb8 {[%emt 0:06:00]} 39. Rh2 {[%emt 0:01:56]} Kg8 {[%emt 0:02:21]} 40. f5 {[%emt 0:01:42]} Bc8 {[%emt 0:00:40]} 41. fxg6 {[%emt 0:01:48]} Bxe5+ {[%emt 0:05:25]} 42. dxe5 {[%emt 0:00:27]} Rxg6 {[%emt 0:00:03]} 43. Qh1 {[%emt 0:05:18]} Rxg4+ {[%emt 0:04:30]} 44. Kf3 {[%emt 0:00:36]} Kf8 {[%emt 0:03:24]} 45. Rh8+ {[%emt 0:02:30]} Ke7 {[%emt 0:00:05]} 46. Qh6 {[%emt 0:01:20]} 1-0

[Event "Chess House GM-Tourney 2019"]
[Site "Aarhus"]
[Date "2019.02.10"]
[Round "2.4"]
[White "Bjerre, Jonas Buhl"]
[Black "Zumsande, Martin"]
[Result "1-0"]
[ECO "C03"]
[WhiteElo "2432"]
[BlackElo "2492"]
[Annotator "ChessBase"]
[PlyCount "93"]
[EventDate "2019.02.09"]
[EventType "tourn"]
[EventCountry "DEN"]
[SourceTitle "playchess.com"]
[Source "ChessBase"]
[SourceQuality "1"]
[TimeControl "40/5400+30:1800+30"]

1. e4 {[%emt 0:00:00]} e6 {[%emt 0:00:00]} 2. d4 {[%emt 0:00:00]} d5 {[%emt 0:00:00]} 3. Nd2 {[%emt 0:00:00]} Be7 {[%emt 0:00:00]} 4. e5 {[%emt 0:00:31]} c5 {[%emt 0:00:00]} 5. c3 {[%emt 0:00:05]} Nc6 {[%emt 0:00:24]} 6. Bd3 {[%emt 0:00:48]} Bd7 {[%emt 0:00:31]} 7. Ne2 {[%emt 0:01:08]} f6 {[%emt 0:02:40]} 8. f4 {[%emt 0:06:46]} Qb6 {[%emt 0:01:53]} 9. Nf3 {[%emt 0:01:36]} Nh6 {[%emt 0:01:34]} 10. O-O {[%emt 0:08:21]} O-O {[%emt 0:08:18]} 11. Kh1 {[%emt 0:12:27]} cxd4 {[%emt 0:02:05]} 12. Nexd4 {[%emt 0:04:28]} fxe5 {[%emt 0:12:09]} 13. Nxe5 {[%emt 0:08:33]} Nxe5 {[%emt 0:04:01]} 14. fxe5 {[%emt 0:00:09]} Rxf1+ {[%emt 0:01:28]} 15. Qxf1 {[%emt 0:00:40]} Rf8 {[%emt 0:09:47]} 16. Qe2 {[%emt 0:00:58]} Nf5 {[%emt 0:06:52]} 17. Bxf5 {[%emt 0:04:04]} exf5 {[%emt 0:00:11]} 18. Qf3 {[%emt 0:02:31]} Kh8 {[%emt 0:17:44]} 19. Qxd5 {[%emt 0:05:25]} Bc6 {[%emt 0:04:16]} 20. Qe6 {[%emt 0:07:35]} Qd8 {[%emt 0:05:25]} 21. Qc4 {[%emt 0:05:18]} Bd5 {[%emt 0:00:17]} 22. Qe2 {[%emt 0:00:41]} Bc5 {[%emt 0:02:39]} 23. Nf3 {[%emt 0:05:53]} Bc4 {[%emt 0:04:14]} 24. Qe1 {[%emt 0:03:09]} Qb6 {[%emt 0:00:31]} 25. b3 {[%emt 0:03:36]} Bf2 {[%emt 0:01:51]} 26. Be3 {[%emt 0:02:13]} Bxe3 {[%emt 0:03:16]} 27. bxc4 {[%emt 0:00:09]} f4 {[%emt 0:00:25]} 28. Rd1 {[%emt 0:01:43]} h6 {[%emt 0:02:20]} 29. Qe2 {[%emt 0:02:50]} Rd8 {[%emt 0:03:39]} 30. Rd5 {[%emt 0:02:47]} Re8 {[%emt 0:02:48]} 31. Qc2 {[%emt 0:02:10]} Qa6 {[%emt 0:01:01]} 32. Qb3 {[%emt 0:02:55]} Rc8 {[%emt 0:00:51]} 33. h4 {[%emt 0:01:52]} Qg6 {[%emt 0:01:56]} 34. Qxb7 {[%emt 0:01:15]} Rg8 {[%emt 0:01:07]} 35. Rd1 {[%emt 0:01:28]} Qc2 {[%emt 0:00:27]} 36. Qd5 {[%emt 0:00:38]} Qxc3 {[%emt 0:00:29]} 37. e6 {[%emt 0:00:39]} Qf6 {[%emt 0:00:22]} 38. Qd7 {[%emt 0:01:14]} Bc5 {[%emt 0:00:14]} 39. Qf7 {[%emt 0:01:36]} Rf8 {[%emt 0:00:41]} 40. Qxf6 {[%emt 0:00:31]} Rxf6 {[%emt 0:00:01]} 41. Rd5 {[%emt 0:30:29]} Be7 {[%emt 0:02:14]} 42. Nd4 {[%emt 0:00:00]} Rf8 {[%emt 0:00:40]} 43. h5 {[%emt 0:00:00]} Rc8 {[%emt 0:06:59]} 44. Nf5 {[%emt 0:00:00]} Bf6 {[%emt 0:00:20]} 45. e7 {[%emt 0:00:00]} Rb8 {[%emt 0:00:52]} 46. c5 {[%emt 0:00:00]} Kg8 {[%emt 0:00:35]} 47. c6 {[%emt 0:00:00]} 1-0

[Event "Chess House GM-Tourney 2019"]
[Site "Aarhus"]
[Date "2019.02.16"]
[Round "8.2"]
[White "Kollars, Dmitrij"]
[Black "Bjerre, Jonas Buhl"]
[Result "1-0"]
[ECO "B23"]
[WhiteElo "2567"]
[BlackElo "2432"]
[Annotator "ChessBase"]
[PlyCount "181"]
[EventDate "2019.02.09"]
[EventType "tourn"]
[EventCountry "DEN"]
[SourceTitle "playchess.com"]
[Source "ChessBase"]
[SourceQuality "1"]
[TimeControl "40/5400+30:1800+30"]

1. e4 {[%emt 0:00:00]} c5 {[%emt 0:00:00]} 2. Nc3 {[%emt 0:00:00]} a6 {[%emt 0:00:13]} 3. g3 {[%emt 0:00:23]} b5 {[%emt 0:00:57]} 4. Bg2 {[%emt 0:00:17]} Bb7 {[%emt 0:00:25]} 5. d3 {[%emt 0:00:21]} e6 {[%emt 0:00:44]} 6. f4 {[%emt 0:00:54]} d5 {[%emt 0:01:02]} 7. f5 {[%emt 0:00:26]} d4 {[%emt 0:01:16]} 8. fxe6 {[%emt 0:00:09]} fxe6 {[%emt 0:00:35]} 9. Nce2 {[%emt 0:00:10]} e5 {[%emt 0:00:52]} 10. Nf3 {[%emt 0:00:14]} Bd6 {[%emt 0:01:56]} 11. c3 {[%emt 0:04:49]} Nf6 {[%emt 0:05:28]} 12. cxd4 {[%emt 0:00:32]} cxd4 {[%emt 0:00:52]} 13. O-O {[%emt 0:02:19]} Nbd7 {[%emt 0:06:31]} 14. Nh4 {[%emt 0:05:20]} O-O {[%emt 0:08:19]} 15. Nf5 {[%emt 0:01:01]} Nc5 {[%emt 0:05:04]} 16. b4 {[%emt 0:08:59]} Na4 {[%emt 0:04:27]} 17. Qb3+ {[%emt 0:02:52]} Kh8 {[%emt 0:01:32]} 18. Bg5 {[%emt 0:01:15]} h6 {[%emt 0:07:40]} 19. Qe6 {[%emt 0:13:55]} Bc8 {[%emt 0:07:03]} 20. Qxd6 {[%emt 0:00:51]} Qxd6 {[%emt 0:00:48]} 21. Nxd6 {[%emt 0:00:05]} hxg5 {[%emt 0:00:09]} 22. Nxd4 {[%emt 0:01:02]} exd4 {[%emt 0:06:02]} 23. e5 {[%emt 0:00:15]} Rb8 {[%emt 0:01:02]} 24. exf6 {[%emt 0:00:15]} gxf6 {[%emt 0:00:56]} 25. Ne4 {[%emt 0:08:37]} Kg7 {[%emt 0:10:15]} 26. Rac1 {[%emt 0:00:43]} Kg6 {[%emt 0:07:26]} 27. Nxf6 {[%emt 0:09:10]} Nc3 {[%emt 0:02:43]} 28. Nd5 {[%emt 0:02:50]} Rxf1+ {[%emt 0:04:56]} 29. Kxf1 {[%emt 0:00:50]} Nxd5 {[%emt 0:02:11]} 30. Bxd5 {[%emt 0:00:57]} Bf5 {[%emt 0:00:07]} 31. Rc6+ {[%emt 0:01:27]} Kg7 {[%emt 0:00:33]} 32. Be4 {[%emt 0:02:36]} Bxe4 {[%emt 0:02:04]} 33. dxe4 {[%emt 0:00:05]} Re8 {[%emt 0:00:46]} 34. Ke2 {[%emt 0:03:00]} Rxe4+ {[%emt 0:00:42]} 35. Kd3 {[%emt 0:01:13]} Re3+ {[%emt 0:00:53]} 36. Kxd4 {[%emt 0:00:05]} Ra3 {[%emt 0:00:16]} 37. Rc2 {[%emt 0:00:51]} Kf6 {[%emt 0:00:43]} 38. g4 {[%emt 0:04:44]} Ke6 {[%emt 0:02:26]} 39. Rf2 {[%emt 0:13:55]} Kd6 {[%emt 0:02:37]} 40. Ke4 {[%emt 0:09:44]} Ke6 {[%emt 0:03:41]} 41. Kd4 {[%emt 0:07:11]} Kd6 {[%emt 0:02:29]} 42. Rd2 {[%emt 0:02:23]} Ke6 {[%emt 0:05:09]} 43. Kc5 {[%emt 0:00:28]} Ke5 {[%emt 0:01:58]} 44. Rf2 {[%emt 0:00:11]} Ke4 {[%emt 0:01:05]} 45. Kb6 {[%emt 0:01:06]} Ra4 {[%emt 0:04:47]} 46. h3 {[%emt 0:01:49]} Rxb4 {[%emt 0:08:34]} 47. Kxa6 {[%emt 0:00:34]} Rb1 {[%emt 0:01:52]} 48. Rf5 {[%emt 0:00:51]} Rb2 {[%emt 0:02:25]} 49. Rxg5 {[%emt 0:01:00]} Rxa2+ {[%emt 0:00:57]} 50. Kxb5 {[%emt 0:00:05]} Rh2 {[%emt 0:00:06]} 51. Rh5 {[%emt 0:00:13]} Kf4 {[%emt 0:00:18]} 52. g5 {[%emt 0:02:49]} Kf5 {[%emt 0:02:33]} 53. h4 {[%emt 0:00:19]} Rb2+ {[%emt 0:01:23]} 54. Kc5 {[%emt 0:00:18]} Rc2+ {[%emt 0:00:22]} 55. Kd4 {[%emt 0:01:51]} Rd2+ {[%emt 0:00:28]} 56. Ke3 {[%emt 0:00:33]} Ra2 {[%emt 0:00:19]} 57. Rh6 {[%emt 0:00:31]} Rg2 {[%emt 0:01:45]} 58. Kf3 {[%emt 0:04:36]} Rg1 {[%emt 0:00:05]} 59. Rf6+ {[%emt 0:00:05]} Ke5 {[%emt 0:00:04]} 60. Ra6 {[%emt 0:00:59]} Kf5 {[%emt 0:00:28]} 61. Ra8 {[%emt 0:00:30]} Kg6 {[%emt 0:03:07]} 62. Rg8+ {[%emt 0:01:16]} Kf5 {[%emt 0:00:53]} 63. Rf8+ {[%emt 0:00:29]} Ke5 {[%emt 0:00:06]} 64. Rb8 {[%emt 0:00:42]} Kf5 {[%emt 0:00:23]} 65. Rb5+ {[%emt 0:00:18]} Kg6 {[%emt 0:00:05]} 66. Rb8 {[%emt 0:02:46]} Kf5 {[%emt 0:00:20]} 67. Rf8+ {[%emt 0:00:42]} Ke5 {[%emt 0:00:21]} 68. Ke3 {[%emt 0:01:03]} Rg4 {[%emt 0:01:11]} 69. Re8+ {[%emt 0:00:22]} Kf5 {[%emt 0:00:14]} 70. Rh8 {[%emt 0:00:09]} Ke5 {[%emt 0:00:52]} 71. Kd3 {[%emt 0:00:22]} Rg1 {[%emt 0:00:59]} 72. Rh6 {[%emt 0:00:23]} Kf5 {[%emt 0:00:48]} 73. Kd4 Rd1+ {[%emt 0:01:02]} 74. Kc5 {[%emt 0:01:02]} Ra1 {[%emt 0:01:40]} 75. g6 {[%emt 0:01:51]} Kf6 {[%emt 0:00:56]} 76. h5 {[%emt 0:00:11]} Rc1+ {[%emt 0:00:10]} 77. Kd4 {[%emt 0:01:00]} Rd1+ {[%emt 0:00:08]} 78. Ke3 {[%emt 0:00:05]} Re1+ {[%emt 0:00:12]} 79. Kf2 {[%emt 0:00:22]} Re7 {[%emt 0:01:06]} 80. Rh8 {[%emt 0:00:23]} Ra7 {[%emt 0:00:17]} 81. Ke3 {[%emt 0:00:40]} Ra3+ {[%emt 0:01:00]} 82. Kd4 {[%emt 0:00:11]} Ra4+ {[%emt 0:00:20]} 83. Kc5 {[%emt 0:00:11]} Rg4 {[%emt 0:01:12]} 84. Rh7 {[%emt 0:01:00]} Rg1 {[%emt 0:00:18]} 85. Kc6 {[%emt 0:01:24]} Rc1+ {[%emt 0:00:51]} 86. Kd7 {[%emt 0:00:08]} Rd1+ {[%emt 0:00:28]} 87. Ke8 {[%emt 0:00:46]} Ra1 {[%emt 0:00:40]} 88. Rd7 {[%emt 0:02:34]} Ra8+ {[%emt 0:00:11]} 89. Rd8 {[%emt 0:00:06]} Ra5 {[%emt 0:00:21]} 90. Kf8 {[%emt 0:00:30]} Rxh5 {[%emt 0:00:53]} 91. g7 {[%emt 0:00:16]} 1-0